fUST/lending_fUST_20240503
["ID","MTS","AMOUNT","RATE_DAILY","PERIOD"]
[325358030,1714750246614,-500.0,0.00027821,2]
[325358031,1714750246623,-444.28093002,0.00027821,2]
[325358032,1714750246631,-830.4,0.00027821,2]
[325358033,1714750246640,-500.0,0.00027821,2]
[325358034,1714750246649,-500.0,0.00027821,2]
[325358035,1714750246658,-500.0,0.00027821,2]
[325358036,1714750246667,-1598.34,0.00027821,2]
[325358037,1714750246676,-500.0,0.00027821,2]
[325358038,1714750246685,-500.0,0.00027821,2]
[325358039,1714750246694,-509.48688301,0.00027821,2]
[325358040,1714750246703,-500.0,0.00027821,2]
[325358041,1714750246713,-500.0,0.00027821,2]
[325358042,1714750246722,-1060.1,0.00027821,2]
[325358043,1714750246732,-500.0,0.00027821,2]
[325358045,1714750246741,-523.46,0.00027821,2]
[325358047,1714750246751,-500.0,0.00027821,2]
[325358049,1714750246760,-500.0,0.00027821,2]
[325358051,1714750246769,-1068.09,0.00027821,2]
[325358053,1714750246778,-559.43,0.00027821,2]
[325358055,1714750246788,-572.36340523,0.00027821,2]
[325358056,1714750246797,-500.0,0.00027821,2]
[325358058,1714750246806,-500.0,0.00027821,2]
[325358060,1714750246815,-500.0,0.00027821,2]
[325358062,1714750246825,-513.59,0.00027821,2]
[325358064,1714750246834,-500.0,0.00027821,2]
[325358066,1714750246843,-500.0,0.00027821,2]
[325358067,1714750246853,-500.0,0.00027821,2]
[325358069,1714750246862,-632.98,0.00027821,2]
[325358071,1714750246871,-637.02,0.00027821,2]
[325358073,1714750246880,-500.0,0.00027821,2]
[325358075,1714750246890,-1615.03,0.00027821,2]
[325358077,1714750246899,-1312.06,0.00027821,2]
[325358079,1714750246909,-500.0,0.00027821,2]
[325358081,1714750246918,-1845.44,0.00027821,2]
[325358083,1714750246927,-437.47257957,0.00027821,2]
[325358085,1714750246937,-500.0,0.00027821,2]
[325358087,1714750246946,-500.0,0.00027821,2]
[325358089,1714750246956,-500.0,0.00027821,2]
[325358091,1714750246965,-500.0,0.00027821,2]
[325358104,1714750247068,-751.0,0.00027821,2]
[325358106,1714750247091,-500.0,0.00027821,2]
[325358108,1714750247101,-1150.87,0.00027821,2]
[325358110,1714750247110,-664.82,0.00027821,2]
[325358112,1714750247120,-1800.91,0.00027821,2]
[325358114,1714750247129,-500.0,0.00027821,2]
[325358116,1714750247138,-2580.51,0.00027821,2]
[325358118,1714750247147,-500.0,0.00027821,2]
[325358120,1714750247157,-500.0,0.00027821,2]
[325358122,1714750247166,-500.0,0.00027821,2]
[325358124,1714750247175,-500.0,0.00027821,2]
[325358125,1714750247185,-706.9,0.00027821,2]
[325358127,1714750247194,-500.0,0.00027821,2]
[325358129,1714750247203,-500.0,0.00027821,2]
[325358131,1714750247212,-3537.83,0.00027821,2]
[325358133,1714750247221,-500.0,0.00027821,2]
[325358135,1714750247232,-3279.51,0.00027821,2]
[325358137,1714750247241,-674.24,0.00027821,2]
[325358139,1714750247251,-500.0,0.00027821,2]
[325358141,1714750247260,-506.07312868,0.00027821,2]
[325358143,1714750247269,-500.0,0.00027821,2]
[325358145,1714750247281,-500.0,0.00027821,2]
[325358147,1714750247294,-510.8514943,0.00027821,2]
[325358149,1714750247304,-500.0,0.00027821,2]
[325358151,1714750247313,-500.40122726,0.00027821,2]
[325358153,1714750247322,-500.0,0.00027821,2]
[325358155,1714750247331,-519.22,0.00027821,2]
[325358157,1714750247341,-500.0,0.00027821,2]
[325358159,1714750247350,-1543.8,0.00027821,2]
[325358161,1714750247359,-500.0,0.00027821,2]
[325358163,1714750247368,-1504.09,0.00027821,2]
[325358165,1714750247380,-500.0,0.00027821,2]
[325358167,1714750247389,-576.71,0.00027821,2]
[325358169,1714750247398,-4039.733026,0.00027821,2]
[325358171,1714750247407,-500.0,0.00027821,2]
[325358173,1714750247417,-4039.733026,0.00027821,2]
[325358175,1714750247426,-500.0,0.00027821,2]
[325358177,1714750247436,-500.0,0.00027821,2]
[325358179,1714750247445,-500.0,0.00027821,2]
[325358181,1714750247455,-500.0,0.00027821,2]
[325358183,1714750247464,-1175.46,0.00027821,2]
[325358185,1714750247474,-590.04,0.00027821,2]
[325358187,1714750247486,-1444.11,0.00027821,2]
[325358189,1714750247495,-500.0,0.00027821,2]
[325358191,1714750247505,-545.24620274,0.00027821,2]
[325358193,1714750247514,-500.0,0.00027821,2]
[325358195,1714750247524,-500.0,0.00027821,2]
[325358197,1714750247534,-758.49,0.00027821,2]
[325358199,1714750247543,-500.0,0.00027821,2]
[325358201,1714750247552,-500.0,0.00027821,2]
[325358203,1714750247561,-500.0,0.00027821,2]
[325358205,1714750247571,-3880.25,0.00027821,2]
[325358207,1714750247580,-537.87,0.00027821,2]
[325358209,1714750247589,-500.0,0.00027821,2]
[325358211,1714750247598,-500.15606848,0.00027821,2]
[325358212,1714750247608,-500.0,0.00027821,2]
[325358214,1714750247617,-500.0,0.00027821,2]
[325358216,1714750247627,-500.58,0.00027821,2]
[325358218,1714750247636,-5701.04,0.0002784,2]
[325358220,1714750247645,-7031.28,0.0002784,2]
[325358222,1714750247655,-500.0,0.0002784,2]
[325358224,1714750247664,-970.68,0.0002784,2]
[325358226,1714750247673,-500.0,0.0002784,2]
[325358228,1714750247683,-500.0,0.0002784,2]
[325358230,1714750247692,-1931.76,0.0002784,2]
[325358232,1714750247701,-42737.23,0.0002784,2]
[325358234,1714750247710,-1943.44,0.0002784,2]
[325358236,1714750247720,-500.0,0.0002784,2]
[325358238,1714750247731,-11480.03,0.0002784,2]
[325358240,1714750247741,-500.0,0.00027841,2]
[325358242,1714750247750,-500.0,0.00027841,2]
[325358244,1714750247759,-500.0,0.00027841,2]
[325358246,1714750247768,-500.0,0.00027841,2]
[325358248,1714750247778,-509.55,0.00027841,2]
[325358250,1714750247787,-500.0,0.00027841,2]
[325358252,1714750247796,-1029.88,0.00027841,2]
[325358254,1714750247805,-507.44347946,0.00027841,2]
[325358255,1714750247814,-500.0,0.00027841,2]
[325358257,1714750247824,-500.0,0.00027841,2]
[325358259,1714750247833,-515.52,0.00027841,2]
[325358261,1714750247842,-628.66,0.00027841,2]
[325358263,1714750247852,-500.0,0.00027841,2]
[325358265,1714750247861,-670.49,0.00027841,2]
[325358267,1714750247870,-418.11647482,0.00027841,2]
[325358269,1714750247880,-1503.33,0.00027841,2]
[325358271,1714750247889,-500.0,0.00027841,2]
[325358273,1714750247899,-500.0,0.00027841,2]
[325358275,1714750247909,-500.0,0.00027841,2]
[325358277,1714750247919,-500.0,0.00027841,2]
[325358279,1714750247928,-591.98,0.00027841,2]
[325358281,1714750247937,-500.0,0.00027841,2]
[325358283,1714750247946,-500.0,0.00027841,2]
[325358285,1714750247956,-950.39,0.00027841,2]
[325358287,1714750247966,-500.0,0.00027841,2]
[325358289,1714750247975,-500.0,0.00027841,2]
[325358291,1714750247985,-500.0,0.00027841,2]
[325358293,1714750247996,-500.0,0.00027841,2]
[325358295,1714750248005,-500.0,0.00027841,2]
[325358297,1714750248016,-500.0,0.00027841,2]
[325358299,1714750248025,-506.4969414,0.00027841,2]
[325358301,1714750248035,-516.0,0.00027841,2]
[325358303,1714750248044,-606.44,0.00027841,2]
[325358305,1714750248054,-606.21,0.00027841,2]
[325358307,1714750248063,-345.86695487,0.00027841,2]
[325358309,1714750248072,-500.0,0.00027841,2]
[325358311,1714750248082,-527.45963267,0.00027841,2]
[325358313,1714750248091,-500.0,0.00027841,2]
[325358315,1714750248100,-500.0,0.00027841,2]
[325358317,1714750248110,-500.0,0.00027841,2]
[325358318,1714750248119,-500.0,0.00027841,2]
[325358320,1714750248128,-500.0,0.00027841,2]
[325358322,1714750248138,-1079.1,0.00027863,3]
[325358324,1714750248147,-2231.44222868,0.00027884,4]
[325358326,1714750248156,-166.666666,0.00027891,2]
[325358328,1714750248166,-552.44,0.00027912,2]
[325358330,1714750248175,-500.0,0.00027912,2]
[325358332,1714750248184,-835.32965575,0.00027943,2]
[325358334,1714750248194,-500.0,0.00027945,2]
[325358336,1714750248203,-500.0,0.00027945,2]
[325358338,1714750248212,-500.0,0.00027945,2]
[325358340,1714750248221,-500.0,0.00027945,2]
[325358342,1714750248232,-1000.0,0.00027945,2]
[325358344,1714750248243,-500.0,0.00027945,2]
[325358346,1714750248252,-500.0,0.00027945,2]
[325358348,1714750248262,-500.0,0.00027945,2]
[325358350,1714750248272,-500.0,0.00027945,2]
[325358352,1714750248282,-500.0,0.00027945,2]
[325358354,1714750248296,-500.0,0.00027945,2]
[325358356,1714750248306,-500.0,0.00027945,2]
[325358358,1714750248315,-177.74632215,0.00027945,2]
[325358360,1714750248325,-500.0,0.00027945,2]
[325358362,1714750248336,-391.04608487,0.00027945,2]
[325358364,1714750248346,-500.0,0.00027945,2]
[325358365,1714750248356,-500.0,0.00027945,2]
[325358367,1714750248369,-500.0,0.00027945,2]
[325358369,1714750248379,-500.0,0.00027945,2]
[325358371,1714750248389,-151.0,0.00027945,2]
[325358373,1714750248398,-272.3254629,0.00027945,2]
[325358375,1714750248407,-221.07032047,0.00028,2]
[325358377,1714750248416,-990.6611745,0.00028,2]
[325358379,1714750248425,-160.0,0.00028017,2]
[325358381,1714750248434,-1000.0,0.00028041,2]
[325358383,1714750248444,-1327.14,0.00028092,2]
[325358385,1714750248453,-9275.45,0.00028092,2]
[325358387,1714750248463,-785.37,0.00028092,2]
[325358389,1714750248472,-500.0,0.00028092,2]
[325358391,1714750248482,-10513.94,0.00028092,2]
[325358393,1714750248491,-976.39,0.00028092,2]
[325358395,1714750248500,-1022.09,0.00028092,2]
[325358397,1714750248509,-2235.82,0.00028092,2]
[325358399,1714750248518,-562.24,0.00028092,2]
[325358400,1714750248527,-601.06,0.00028092,2]
[325358402,1714750248538,-797.94,0.00028092,2]
[325358404,1714750248547,-500.0,0.00028092,2]
[325358406,1714750248557,-6216.02,0.00028092,2]
[325358408,1714750248566,-500.0,0.00028092,2]
[325358410,1714750248575,-500.0,0.00028094,2]
[325358412,1714750248584,-500.0,0.00028094,2]
[325358414,1714750248593,-176.55763516,0.00028094,2]
[325358416,1714750248602,-510.42,0.00028094,2]
[325358418,1714750248611,-500.0,0.00028094,2]
[325358420,1714750248621,-500.0,0.00028094,2]
[325358422,1714750248630,-500.0,0.00028094,2]
[325358424,1714750248639,-690.26,0.00028094,2]
[325358426,1714750248648,-509.7847969,0.00028094,2]
[325358428,1714750248657,-500.0,0.00028094,2]
[325358430,1714750248666,-512.63,0.00028094,2]
[325358432,1714750248676,-506.33471578,0.00028094,2]
[325358434,1714750248685,-500.0,0.00028094,2]
[325358436,1714750248694,-500.0,0.00028094,2]
[325358438,1714750248703,-2997.35,0.00028094,2]
[325358440,1714750248712,-500.0,0.00028094,2]
[325358442,1714750248721,-1578.22,0.00028094,2]
[325358444,1714750248731,-721.96,0.00028094,2]
[325358445,1714750248741,-500.0,0.00028094,2]
[325358447,1714750248750,-1485.57,0.00028094,2]
[325358449,1714750248759,-4953.28,0.00028094,2]
[325358451,1714750248769,-1549.55,0.00028094,2]
[325358453,1714750248779,-6371.53,0.00028094,2]
[325358456,1714750248788,-2101.63,0.00028094,2]
[325358457,1714750248798,-500.0,0.00028094,2]
[325358459,1714750248807,-500.0,0.00028094,2]
[325358461,1714750248816,-500.0,0.00028094,2]
[325358463,1714750248825,-7429.7,0.00028094,2]
[325358465,1714750248834,-2456.55,0.00028094,2]
[325358467,1714750248844,-500.0,0.00028094,2]
[325358469,1714750248853,-633.36,0.00028094,2]
[325358471,1714750248862,-500.0,0.00028094,2]
[325358473,1714750248871,-1023.54,0.00028094,2]
[325358475,1714750248880,-1355.33,0.00028094,2]
[325358477,1714750248890,-1128.19,0.00028094,2]
[325358479,1714750248901,-1213.87,0.00028094,2]
[325358481,1714750248910,-500.0,0.00028094,2]
[325358483,1714750248920,-500.0,0.00028094,2]
[325358485,1714750248929,-500.0,0.00028094,2]
[325358487,1714750248938,-500.0,0.00028094,2]
[325358489,1714750248948,-862.53,0.00028095,2]
[325358491,1714750248958,-500.0,0.00028095,2]
[325358493,1714750248968,-500.0,0.00028095,2]
[325358495,1714750248978,-837.87,0.00028095,2]
[325358497,1714750248988,-500.0,0.00028095,2]
[325358499,1714750248997,-500.0,0.00028095,2]
[325358501,1714750249007,-500.0,0.00028095,2]
[325358503,1714750249017,-500.0,0.00028095,2]
[325358505,1714750249026,-500.0,0.00028095,2]
[325358507,1714750249035,-244.99734024,0.00028095,2]
[325358509,1714750249045,-500.0,0.00028095,2]
[325358511,1714750249054,-1489.61,0.00028095,2]
[325358513,1714750249064,-2633.47,0.00028095,2]
[325358515,1714750249073,-500.0,0.00028095,2]
[325358517,1714750249083,-830.4,0.00028095,2]
[325358519,1714750249093,-255.56907529,0.00028095,2]
[325358521,1714750249101,-500.0,0.00028095,2]
[325358523,1714750249111,-500.0,0.00028095,2]
[325358525,1714750249120,-1598.34,0.00028095,2]
[325358527,1714750249130,-500.0,0.00028095,2]
[325358529,1714750249139,-500.0,0.00028095,2]
[325358531,1714750249148,-500.0,0.00028095,2]
[325358533,1714750249157,-500.0,0.00028095,2]
[325358535,1714750249167,-1060.1,0.00028095,2]
[325358537,1714750249176,-500.0,0.00028095,2]
[325358539,1714750249186,-523.46,0.00028095,2]
[325358541,1714750249195,-500.0,0.00028095,2]
[325358543,1714750249204,-500.0,0.00028095,2]
[325358545,1714750249214,-1068.09,0.00028095,2]
[325358546,1714750249224,-559.43,0.00028095,2]
[325358548,1714750249235,-500.0,0.00028095,2]
[325358550,1714750249246,-500.0,0.00028095,2]
[325358552,1714750249256,-323.80663107,0.00028095,2]
[325358554,1714750249265,-513.59,0.00028095,2]
[325358556,1714750249275,-500.0,0.00028095,2]
[325358558,1714750249285,-500.0,0.00028095,2]
[325358560,1714750249299,-500.0,0.00028095,2]
[325358562,1714750249308,-632.98,0.00028095,2]
[325358564,1714750249317,-637.02,0.00028095,2]
[325358566,1714750249327,-500.0,0.00028095,2]
[325358568,1714750249336,-1615.03,0.00028095,2]
[325358570,1714750249346,-1312.06,0.00028095,2]
[325358572,1714750249356,-500.0,0.00028095,2]
[325358574,1714750249365,-1845.44,0.00028095,2]
[325358576,1714750249376,-500.0,0.00028095,2]
[325358578,1714750249386,-500.0,0.00028095,2]
[325358580,1714750249395,-500.0,0.00028095,2]
[325358582,1714750249405,-500.0,0.00028095,2]
[325358584,1714750249415,-751.0,0.00028095,2]
[325358586,1714750249425,-500.0,0.00028095,2]
[325358588,1714750249435,-1150.87,0.00028095,2]
[325358590,1714750249444,-664.82,0.00028095,2]
[325358592,1714750249453,-1800.91,0.00028095,2]
[325358594,1714750249463,-500.0,0.00028095,2]
[325358596,1714750249473,-2580.51,0.00028095,2]
[325358598,1714750249483,-500.0,0.00028095,2]
[325358600,1714750249492,-495.98251577,0.00028095,2]
[325358602,1714750249502,-500.0,0.00028095,2]
[325358604,1714750249511,-500.0,0.00028095,2]
[325358606,1714750249521,-706.9,0.00028095,2]
[325358618,1714750249637,-500.0,0.00028095,2]
[325358620,1714750249647,-500.0,0.00028095,2]
[325358622,1714750249658,-3537.83,0.00028095,2]
[325358624,1714750249668,-464.31386055,0.00028095,2]
[325358626,1714750249678,-3279.51,0.00028095,2]
[325358628,1714750249688,-674.24,0.00028095,2]
[325358630,1714750249698,-500.0,0.00028095,2]
[325358632,1714750249708,-500.0,0.00028095,2]
[325358634,1714750249718,-500.0,0.00028095,2]
[325358636,1714750249728,-500.0,0.00028095,2]
[325358638,1714750249738,-514.13288852,0.00028095,2]
[325358640,1714750249747,-519.22,0.00028095,2]
[325358642,1714750249757,-500.0,0.00028095,2]
[325358644,1714750249767,-1543.8,0.00028095,2]
[325358646,1714750249777,-500.0,0.00028095,2]
[325358648,1714750249786,-1504.09,0.00028095,2]
[325358650,1714750249796,-500.0,0.00028095,2]
[325358652,1714750249805,-576.71,0.00028095,2]
[325358654,1714750249814,-4039.733026,0.00028095,2]
[325358656,1714750249823,-506.66113087,0.00028095,2]
[325358657,1714750249832,-4039.733026,0.00028095,2]
[325358659,1714750249841,-500.0,0.00028095,2]
[325358661,1714750249850,-500.0,0.00028095,2]
[325358663,1714750249860,-500.0,0.00028095,2]
[325358665,1714750249870,-500.0,0.00028095,2]
[325358667,1714750249879,-1175.46,0.00028095,2]
[325358669,1714750249888,-590.04,0.00028095,2]
[325358671,1714750249897,-1444.11,0.00028095,2]
[325358673,1714750249908,-500.0,0.00028095,2]
[325358675,1714750249917,-500.0,0.00028095,2]
[325358677,1714750249927,-500.0,0.00028095,2]
[325358679,1714750249936,-758.49,0.00028095,2]
[325358681,1714750249946,-500.0,0.00028095,2]
[325358683,1714750249955,-500.0,0.00028095,2]
[325358685,1714750249965,-500.0,0.00028095,2]
[325358686,1714750249974,-3880.25,0.00028095,2]
[325358688,1714750249984,-537.87,0.00028095,2]
[325358690,1714750249993,-500.0,0.00028095,2]
[325358692,1714750250003,-500.0,0.00028095,2]
[325358694,1714750250013,-500.0,0.00028095,2]
[325358696,1714750250022,-500.58,0.00028095,2]
[325358698,1714750250032,-5701.04,0.00028114,2]
[325358700,1714750250041,-7031.28,0.00028114,2]
[325358701,1714750250050,-500.0,0.00028114,2]
[325358703,1714750250060,-970.68,0.00028114,2]
[325358705,1714750250069,-500.0,0.00028114,2]
[325358707,1714750250078,-500.0,0.00028114,2]
[325358709,1714750250088,-1931.76,0.00028114,2]
[325358711,1714750250097,-42737.23,0.00028114,2]
[325358713,1714750250107,-1943.44,0.00028114,2]
[325358715,1714750250116,-500.0,0.00028114,2]
[325358716,1714750250125,-11480.03,0.00028114,2]
[325358718,1714750250135,-500.0,0.00028115,2]
[325358720,1714750250145,-500.0,0.00028115,2]
[325358722,1714750250154,-500.0,0.00028115,2]
[325358724,1714750250163,-500.0,0.00028115,2]
[325358726,1714750250173,-509.55,0.00028115,2]
[325358728,1714750250182,-500.0,0.00028115,2]
[325358730,1714750250191,-1029.88,0.00028115,2]
[325358732,1714750250201,-500.0,0.00028115,2]
[325358734,1714750250210,-500.0,0.00028115,2]
[325358736,1714750250220,-515.52,0.00028115,2]
[325358738,1714750250230,-628.66,0.00028115,2]
[325358740,1714750250239,-500.0,0.00028115,2]
[325358741,1714750250250,-670.49,0.00028115,2]
[325358743,1714750250259,-1503.33,0.00028115,2]
[325358745,1714750250269,-500.0,0.00028115,2]
[325358747,1714750250279,-500.0,0.00028115,2]
[325358749,1714750250293,-500.0,0.00028115,2]
[325358751,1714750250303,-502.08679768,0.00028115,2]
[325358753,1714750250313,-591.98,0.00028115,2]
[325358755,1714750250323,-500.0,0.00028115,2]
[325358757,1714750250333,-418.51816884,0.00028115,2]
[325358759,1714750250343,-950.39,0.00028115,2]
[325358761,1714750250353,-500.0,0.00028115,2]
[325358763,1714750250363,-515.75478667,0.00028115,2]
[325358765,1714750250376,-500.0,0.00028115,2]
[325358767,1714750250386,-500.0,0.00028115,2]
[325358769,1714750250395,-500.0,0.00028115,2]
[325358771,1714750250405,-500.0,0.00028115,2]
[325358773,1714750250414,-516.0,0.00028115,2]
[325358775,1714750250423,-606.44,0.00028115,2]
[325358776,1714750250433,-606.21,0.00028115,2]
[325358778,1714750250444,-500.0,0.00028115,2]
[325358780,1714750250453,-500.0,0.00028115,2]
[325358782,1714750250463,-500.0,0.00028115,2]
[325358784,1714750250472,-500.0,0.00028115,2]
[325358786,1714750250481,-500.0,0.00028115,2]
[325358788,1714750250491,-180.47426743,0.00028115,2]
[325358790,1714750250500,-1000.0,0.00028172,2]
[325358791,1714750250509,-151.0,0.00028186,2]
[325358793,1714750250519,-552.44,0.00028186,2]
[325358795,1714750250529,-500.0,0.00028186,2]
[325358797,1714750250539,-537.0,0.00028189,35]
[325358799,1714750250548,-537.0,0.00028199,35]
[325358801,1714750250557,-283.0,0.000282,2]
[325358803,1714750250567,-371.057651,0.000282,13]
[325358805,1714750250577,-537.0,0.00028209,35]
[325358807,1714750250588,-3051.58762507,0.00028217,2]
[325358809,1714750250597,-500.0,0.00028219,2]
[325358811,1714750250606,-500.0,0.00028219,2]
[325358812,1714750250616,-500.0,0.00028219,2]
[325358814,1714750250626,-500.0,0.00028219,2]
[325358816,1714750250635,-1000.0,0.00028219,2]
[325358818,1714750250645,-500.0,0.00028219,2]
[325358820,1714750250654,-500.0,0.00028219,2]
[325358822,1714750250664,-500.0,0.00028219,2]
[325358824,1714750250674,-500.0,0.00028219,2]
[325358826,1714750250684,-500.0,0.00028219,2]
[325358828,1714750250694,-500.0,0.00028219,2]
[325358830,1714750250704,-245.19202447,0.00028219,2]
[325358832,1714750250714,-500.0,0.00028219,2]
[325358834,1714750250723,-500.0,0.00028219,2]
[325358836,1714750250733,-500.0,0.00028219,2]
[325358838,1714750250743,-500.0,0.00028219,2]
[325358840,1714750250752,-500.0,0.00028219,2]
[325358842,1714750250762,-604.46492,0.000283,2]
[325358843,1714750250771,-1327.14,0.00028366,2]
[325358845,1714750250781,-9275.45,0.00028366,2]
[325358847,1714750250790,-785.37,0.00028366,2]
[325358849,1714750250800,-500.0,0.00028366,2]
[325358851,1714750250810,-10513.94,0.00028366,2]
[325358853,1714750250820,-976.39,0.00028366,2]
[325358855,1714750250829,-1022.09,0.00028366,2]
[325358857,1714750250839,-2235.82,0.00028366,2]
[325358859,1714750250848,-562.24,0.00028366,2]
[325358861,1714750250858,-601.06,0.00028366,2]
[325358862,1714750250868,-797.94,0.00028366,2]
[325358864,1714750250878,-500.0,0.00028366,2]
[325358866,1714750250887,-6216.02,0.00028366,2]
[325358868,1714750250897,-500.0,0.00028366,2]
[325358870,1714750250907,-500.0,0.00028368,2]
[325358872,1714750250917,-500.0,0.00028368,2]
[325358874,1714750250927,-510.42,0.00028368,2]
[325358876,1714750250936,-500.0,0.00028368,2]
[325358878,1714750250946,-500.0,0.00028368,2]
[325358880,1714750250956,-500.0,0.00028368,2]
[325358882,1714750250966,-690.26,0.00028368,2]
[325358884,1714750250976,-500.0,0.00028368,2]
[325358886,1714750250985,-512.63,0.00028368,2]
[325358888,1714750250996,-500.0,0.00028368,2]
[325358890,1714750251006,-500.0,0.00028368,2]
[325358892,1714750251016,-2997.35,0.00028368,2]
[325358894,1714750251025,-500.0,0.00028368,2]
[325358895,1714750251034,-1578.22,0.00028368,2]
[325358897,1714750251044,-721.96,0.00028368,2]
[325358899,1714750251054,-500.0,0.00028368,2]
[325358901,1714750251063,-1485.57,0.00028368,2]
[325358903,1714750251072,-4953.28,0.00028368,2]
[325358905,1714750251081,-1549.55,0.00028368,2]
[325358907,1714750251091,-6371.53,0.00028368,2]
[325358909,1714750251100,-2101.63,0.00028368,2]
[325358911,1714750251110,-500.0,0.00028368,2]
[325358913,1714750251119,-500.0,0.00028368,2]
[325358915,1714750251128,-500.0,0.00028368,2]
[325358917,1714750251138,-7429.7,0.00028368,2]
[325358919,1714750251147,-2456.55,0.00028368,2]
[325358921,1714750251157,-500.0,0.00028368,2]
[325358922,1714750251166,-633.36,0.00028368,2]
[325358924,1714750251176,-500.0,0.00028368,2]
[325358926,1714750251186,-1023.54,0.00028368,2]
[325358928,1714750251195,-1355.33,0.00028368,2]
[325358930,1714750251205,-1128.19,0.00028368,2]
[325358932,1714750251214,-1213.87,0.00028368,2]
[325358934,1714750251223,-500.0,0.00028368,2]
[325358936,1714750251233,-391.1655493,0.00028368,2]
[325358938,1714750251243,-500.0,0.00028368,2]
[325358940,1714750251253,-515.3682102,0.00028368,2]
[325358942,1714750251262,-862.53,0.00028369,2]
[325358944,1714750251271,-500.0,0.00028369,2]
[325358945,1714750251281,-500.0,0.00028369,2]
[325358947,1714750251291,-837.87,0.00028369,2]
[325358949,1714750251302,-500.0,0.00028369,2]
[325358951,1714750251311,-500.0,0.00028369,2]
[325358953,1714750251321,-500.0,0.00028369,2]
[325358955,1714750251331,-500.0,0.00028369,2]
[325358957,1714750251342,-500.0,0.00028369,2]
[325358959,1714750251352,-500.0,0.00028369,2]
[325358961,1714750251362,-1489.61,0.00028369,2]
[325358963,1714750251375,-2633.47,0.00028369,2]
[325358965,1714750251385,-500.0,0.00028369,2]
[325358967,1714750251394,-830.4,0.00028369,2]
[325358969,1714750251404,-500.0,0.00028369,2]
[325358971,1714750251413,-500.0,0.00028369,2]
[325358973,1714750251423,-1598.34,0.00028369,2]
[325358975,1714750251432,-406.23080281,0.00028369,2]
[325358977,1714750251442,-500.0,0.00028369,2]
[325358978,1714750251451,-500.0,0.00028369,2]
[325358980,1714750251461,-500.0,0.00028369,2]
[325358982,1714750251471,-1060.1,0.00028369,2]
[325358984,1714750251480,-538.36160212,0.00028369,2]
[325358986,1714750251492,-523.46,0.00028369,2]
[325358988,1714750251501,-500.0,0.00028369,2]
[325358990,1714750251510,-500.0,0.00028369,2]
[325358992,1714750251520,-1068.09,0.00028369,2]
[325358994,1714750251529,-559.43,0.00028369,2]
[325358996,1714750251538,-432.55144666,0.00028369,2]
[325358997,1714750251547,-500.0,0.00028369,2]
[325358999,1714750251557,-513.59,0.00028369,2]
[325359001,1714750251566,-500.0,0.00028369,2]
[325359003,1714750251576,-500.0,0.00028369,2]
[325359005,1714750251585,-500.0,0.00028369,2]
[325359007,1714750251594,-632.98,0.00028369,2]
[325359009,1714750251603,-637.02,0.00028369,2]
[325359011,1714750251612,-500.0,0.00028369,2]